Cogmind - Beta 13 @@@ ROGUE MODE // 2024.04.07 @ 20:43:01 Player: redbart Result: Destroyed by G-47 Trooper with Particle Gun Performance ------------- Evolutions (2) 1000 Regions Visited (4) 800 Robots Destroyed (32) 160 Value Destroyed (678) 678 Prototype IDs (2) 40 Alien Tech Used (0) 0 Bonus (0) 0 TOTAL SCORE: 2678 Bonus ------- None Cogmind --------- Core Integrity 0/550 Matter 227/300 Energy 265/265 System Corruption 0% Temperature Cool (57) Movement Walking (120) Location -8/Materials Parts ------- > --- POWER (1) -------- Improved Ion Engine > --- PROPULSION (4) --- Aluminum Leg Improved Aluminum Leg Improved Aluminum Leg Carbon-fiber Leg > --- UTILITY (4) ------ Improved Targeting Computer Melee Analysis Suite Core Shielding > --- WEAPON (2) ------- Particle Gun Katana > --- INVENTORY (5) ---- (None) Peak State ------------ > --- POWER ------------ Improved Ion Engine > --- PROPULSION ------- Improved Aluminum Leg Improved Aluminum Leg Carbon-fiber Leg > --- UTILITY ---------- Structural Scanner Improved Targeting Computer Melee Analysis Suite Core Shielding > --- WEAPON ----------- Particle Gun Katana > --- INVENTORY -------- (None) [Rating: 21] Favorites ----------- Power Ion Engine Engine Ion Engine Propulsion Light Treads Treads Light Treads Leg Improved Aluminum Leg Flight Unit Flight Unit Utility Sensor Array Device Sensor Array Processor Improved Targeting Computer Protection Core Shielding Weapon Light Assault Rifle Energy Gun Particle Gun Ballistic Gun Light Assault Rifle Launcher Grenade Launcher Slashing Weapon Katana Build | -11 -10 -9 -9 -8 ------- Run | Yrd Mat Mat Sto Mat Slots Evolved 4 | . . 2 . 2 Power . | . . . . . Propulsion 2 | . . 1 . 1 Utility 2 | . . 1 . 1 Weapon . | . . . . . Parts Attached 53 | 8 3 10 18 14 Power 7 | 2 . . 3 2 Engine 7 | 2 . . 3 2 Core . | . . . . . Reactor . | . . . . . Propulsion 27 | 2 2 6 12 5 Treads 13 | 2 . 3 7 1 Leg 4 | . . . . 4 Wheel . | . . . . . Hover . | . . . . . Flight 10 | . 2 3 5 . Utility 9 | 2 1 2 1 3 Device 6 | 2 1 1 1 1 Storage . | . . . . . Processor 2 | . . 1 . 1 Hackware . | . . . . . Protection 1 | . . . . 1 Artifact . | . . . . . Weapon 10 | 2 . 2 2 4 Energy Gun 2 | . . . . 2 Energy Cannon . | . . . . . Ballistic Gun 5 | 2 . 1 1 1 Ballistic Cannon . | . . . . . Launcher 2 | . . 1 1 . Special Weapon . | . . . . . Impact Weapon . | . . . . . Slashing Weapon 1 | . . . . 1 Piercing Weapon . | . . . . . Special Melee Weapon . | . . . . . Unidentified Prototypes . | . . . . . Parts Lost 19 | . . . 15 4 Power 3 | . . . 2 1 Propulsion 10 | . . . 9 1 Utility 3 | . . . 2 1 Weapon 3 | . . . 2 1 Highest Loss Streak 5 | . . . 5 3 To Critical Strikes . | . . . . . Average Slot Usage (%) 83 | . 99 86 85 38 Engine 10 | . 14 11 9 4 Treads 20 | . 27 25 17 2 Leg 1 | . . . . 7 Flight 3 | . . 4 10 . Device 18 | . 27 13 17 . Processor 5 | . . 9 11 12 Ballistic Gun 19 | . 28 17 14 1 Launcher 1 | . . 4 4 . Naked Turns . | . . . . . Heaviest Build 14 | 9 9 10 11 14 Greatest Support 60 | 40 40 60 60 51 Greatest Overweight (x) 2 | 2 . . 1 2 Average Overweight (x) . | . . . . . Largest Inventory Capacity 5 | 5 5 5 5 5 Average Capacity 5 | 5 5 5 5 5 Most Carried 5 | 3 5 5 5 5 Average Carried 3 | 1 4 4 3 1 Final Capacity 5 | 5 5 5 5 5 Final Carried 5 | 2 5 5 4 . Class Distribution -------------------- 88% | Mutant 11% | Scavenger-Mutant Dominant Class ---------------- Mutant | -10/Materials Mutant | -9/Materials Mutant | -9/Storage Mutant | -8/Materials Resources | -11 -10 -9 -9 -8 ----------- Run | Yrd Mat Mat Sto Mat Matter Collected 746 | 288 68 48 87 255 Remotely . | . . . . . Salvage Created 641 | 56 113 103 114 255 Parts 72 | 14 14 8 24 12 Haulers Intercepted . | . . . . . Recyclers Shooed . | . . . . . Parts Field Recycled . | . . . . . Retrieved Matter . | . . . . . Parts Self-Destructed . | . . . . . Prevented . | . . . . . Kills | -11 -10 -9 -9 -8 ------- Run | Yrd Mat Mat Sto Mat Combat Hostiles Destroyed 22 | . 7 4 6 5 Melee 3 | . . . . 3 Guns 12 | . 7 3 . 2 AOE 7 | . . 1 6 . Classes Destroyed 9 | 1 2 2 2 2 Worker 1 | . . 1 . . Builder 4 | . . . 4 . Tunneler 4 | 4 . . . . Watcher 1 | . . . 1 . Swarmer 10 | . 6 3 1 . Grunt 8 | . 1 . 4 3 Duelist 1 | . . . . 1 Sentry 2 | . . 1 1 . Hunter 1 | . . . . 1 Best Kill Streak 8 | 4 6 3 8 3 Combat Bots Only 6 | . 6 3 4 3 Max Kills in Single Turn 3 | 1 1 2 3 1 Gunslinging 1 | . . 1 . . Exploded 2 | . . 1 2 . Melee 1 | . . . . 1 Uniques/NPCs Destroyed . | . . . . . Combat | -11 -10 -9 -9 -8 -------- Run | Yrd Mat Mat Sto Mat Hostile Shots Fired 258 | . 35 29 104 90 Missed 78 | . 11 11 33 23 Damage Taken 2545 | . 239 201 891 1214 Core 926 | . 56 63 257 550 Absorbed by Shields . | . . . . . Redirected to Shielding 13 | . . . . 13 Core Remaining (%) 65 | 100 77 . 20 . Volleys Fired 76 | 9 21 8 20 18 Largest 2 | 2 2 2 2 1 Hottest 65 | 40 40 50 50 65 Shots Fired 133 | 18 42 15 40 18 Gun 116 | 18 42 13 25 18 Cannon . | . . . . . Launcher 17 | . . 2 15 . Special . | . . . . . Kinetic 98 | 18 42 13 25 . Thermal 18 | . . . . 18 Explosive 17 | . . 2 15 . Electromagnetic . | . . . . . Robot Hit Streak 17 | 4 15 7 12 17 Robot Miss Streak 3 | 3 3 1 3 1 Penetration Max . | . . . . . Secondary Targets 2 | . 1 1 . . Max Gunslinging Chain 1 | . 1 1 . . Shots Hit Robots 94 | 10 28 13 25 18 Core Hits 65 | 7 11 7 23 17 Critical Kills . | . . . . . Critical Parts Destroyed . | . . . . . Critical Strikes 1 | . . . . 1 Burn 1 | . . . . 1 Melee Attacks 4 | . . . . 4 Impact . | . . . . . Slashing 4 | . . . . 4 Piercing . | . . . . . Sneak Attacks 1 | . . . . 1 Combat Hostiles . | . . . . . Follow-up Attacks . | . . . . . Damage Inflicted 1843 | 88 220 168 926 441 Guns 766 | 88 220 85 130 243 Cannons . | . . . . . Explosions 879 | . . 83 796 . Melee 133 | . . . . 133 Ramming 65 | . . . . 65 Kinetic 523 | 88 220 85 130 . Thermal 243 | . . . . 243 Explosive 879 | . . 83 796 . Electromagnetic . | . . . . . Impact . | . . . . . Slashing 133 | . . . . 133 Piercing . | . . . . . Highest Corruption 1 | . . . 1 . Average Corruption 1 | . . . 1 . Corruption Purged . | . . . . . Corruption Blocked . | . . . . . Overload Shots . | . . . . . Overflow Damage 9 | . . . 9 . Projectiles . | . . . . . Explosions 9 | . . . 9 . Melee . | . . . . . Knockbacks 2 | . . . . 2 Impact 2 | . . . . 2 Kinetic . | . . . . . Secondary . | . . . . . Self-Inflicted Damage 28 | . . . . 28 Shots . | . . . . . Rammed 19 | . . . . 19 Targets Rammed 19 | . . . . 19 Kicked . | . . . . . Crushed . | . . . . . Highest Temperature 126 | . 12 4 38 126 Average Temperature 24 | . 7 3 11 44 Received Heat Transfer 774 | . 84 63 240 387 Siege Activations . | . . . . . Robots Corrupted . | . . . . . Combat Hostiles . | . . . . . Parts Fried . | . . . . . Impact Corruptions . | . . . . . Robots Melted . | . . . . . Combat Hostiles . | . . . . . Parts Melted 2 | . . . . 2 Heat Transferred 666 | . . . . 666 Parts Sabotaged . | . . . . . Parts Stolen . | . . . . . Parts Stripped . | . . . . . Power Chain Reactions . | . . . . . Alert | -11 -10 -9 -9 -8 ------- Run | Yrd Mat Mat Sto Mat Peak Influence 256 | 20 185 229 256 173 Initial 96 | . 13 78 96 92 Average 87 | 12 39 152 182 109 Maximum Alert Level 1 | . . 1 1 . Low Security (%) 87 | 100 100 80 41 100 Level 1 12 | . . 19 58 . Level 2 . | . . . . . Level 3 . | . . . . . Level 4 . | . . . . . Level 5 . | . . . . . High Security . | . . . . . Max Security . | . . . . . Squads Dispatched 6 | . 1 . 4 1 Investigation 1 | . . . 1 . Extermination . | . . . . . Reinforcement 4 | . 1 . 3 . Assault . | . . . . . Garrison 1 | . . . . 1 Intercept . | . . . . . Searches Triggered . | . . . . . Construction Impeded 1 | . . . 1 . Haulers Reinforced . | . . . . . Active Scanning Responses . | . . . . . Cargo Convoy Interrupts . | . . . . . Stealth | -11 -10 -9 -9 -8 --------- Run | Yrd Mat Mat Sto Mat Distress Signals 4 | . . . 3 1 Communications Jammed . | . . . . . Distress Signals . | . . . . . Times Spotted 44 | . 12 5 18 9 Peak Tracking Total 9 | . 6 3 9 5 Tactical Retreats . | . . . . . Traps | -11 -10 -9 -9 -8 ------- Run | Yrd Mat Mat Sto Mat Traps Triggered 2 | . . . 2 . Indirectly . | . . . . . Trap Hack Attempts . | . . . . . Triggered . | . . . . . Disarmed . | . . . . . Reprogrammed . | . . . . . Reused . | . . . . . Traps Extracted . | . . . . . Installed . | . . . . . Triggered . | . . . . . Machines | -11 -10 -9 -9 -8 ---------- Run | Yrd Mat Mat Sto Mat Machines Disabled 1 | . . . 1 . Max in Single Turn 1 | . . . 1 . Machines Repaired . | . . . . . Machines Dismantled . | . . . . . Machines Sabotaged . | . . . . . Overloaded Fab Kills . | . . . . . Hacking | -11 -10 -9 -9 -8 --------- Run | Yrd Mat Mat Sto Mat Machines Accessed 10 | . 3 1 4 2 Terminals 5 | . 2 . 3 . Fabricators . | . . . . . Repair Stations 1 | . 1 . . . Recycling Units 1 | . . . . 1 Scanalyzers 2 | . . 1 . 1 Garrison Access 1 | . . . 1 . Total Hacks 22 | . 5 4 7 6 Successful 17 | . 4 4 4 5 Failed 5 | . 1 . 3 1 Catastrophic 1 | . . . 1 . Database Lockouts . | . . . . . Manual 2 | . 2 . . . Terminals 9 | . 3 . 6 . Fabricators . | . . . . . Repair Stations 2 | . 2 . . . Recycling Units 4 | . . . . 4 Scanalyzers 6 | . . 4 . 2 Garrison Access 1 | . . . 1 . Terminal Hacks 6 | . 3 . 3 . Prototype ID Bank 1 | . 1 . . . Alert Level 1 | . 1 . . . Unreport Threat 1 | . . . 1 . Hauler Manifests 1 | . . . 1 . Zone Layout 2 | . 1 . 1 . Fabricator Hacks . | . . . . . Repair Station Hacks 1 | . 1 . . . Scan Component 1 | . 1 . . . Recycling Unit Hacks 3 | . . . . 3 Recycle Component 1 | . . . . 1 Process 1 | . . . . 1 Retrieve Matter 1 | . . . . 1 Scanalyzer 6 | . . 4 . 2 Insert Component 3 | . . 2 . 1 Analyze 3 | . . 2 . 1 Garrison Access Hacks 1 | . . . 1 . Unlock Access 1 | . . . 1 . Unauthorized Hacks . | . . . . . Terminals . | . . . . . Fabricators . | . . . . . Repair Stations . | . . . . . Recycling Units . | . . . . . Scanalyzers . | . . . . . Garrison Access . | . . . . . Data Cores Recovered . | . . . . . Used . | . . . . . Hacking Detections 7 | . 3 1 2 1 Full Trace Events 1 | . . . 1 . Feedback Events . | . . . . . Feedback Blocked . | . . . . . Robot Schematics Acquired . | . . . . . Robots Built . | . . . . . Authchips . | . . . . . Time . | . . . . . Total Robot Build Rating . | . . . . . Part Schematics Acquired 3 | . . 2 . 1 Parts Built . | . . . . . Authchips . | . . . . . Time . | . . . . . Total Part Build Rating . | . . . . . Parts Repaired . | . . . . . Time . | . . . . . Parts Recycled 1 | . . . . 1 Recycled Matter 20 | . . . . 20 Retrieved Matter 20 | . . . . 20 Retrieved Components . | . . . . . Parts Scanalyzed 3 | . . 2 . 1 Part Schematics Acquired 3 | . . 2 . 1 Parts Damaged . | . . . . . Bothacking | -11 -10 -9 -9 -8 ------------ Run | Yrd Mat Mat Sto Mat Used RIF Installer . | . . . . . Robots Hacked . | . . . . . Non-combat . | . . . . . Combat . | . . . . . Robot Hacks Applied . | . . . . . Relay Couplers Released . | . . . . . Fabnet Peak Effective % . | . . . . . Robots Rewired . | . . . . . Allies Hacked . | . . . . . Hacks Repelled . | . . . . . Allies | -11 -10 -9 -9 -8 -------- Run | Yrd Mat Mat Sto Mat Total Allies . | . . . . . Largest Group . | . . . . . Highest-Rated Group . | . . . . . Highest-Rated Ally . | . . . . . Total Orders . | . . . . . Ally Attacks . | . . . . . Total Damage . | . . . . . Kills . | . . . . . Allies Corrupted . | . . . . . Allies Melted . | . . . . . Intel | -11 -10 -9 -9 -8 ------- Run | Yrd Mat Mat Sto Mat Robot Analysis Total . | . . . . . Derelict Logs Recovered . | . . . . . Drone Launches . | . . . . . Drone Recoveries . | . . . . . Exploration | -11 -10 -9 -9 -8 ------------- Run | Yrd Mat Mat Sto Mat Turns Passed 1581 | 183 667 206 272 253 Spaces Moved 1056 | 99 383 173 237 164 Core 122 | 14 . . 8 100 Treads 629 | 85 343 84 81 36 Legs 28 | . . . . 28 Wheels . | . . . . . Hover . | . . . . . Flight 277 | . 40 89 148 . Fastest Speed 34 | 50 37 34 34 50 Average Speed 114 | 148 147 95 79 90 Slowest Speed 170 | 160 160 160 160 170 Overloaded Moves . | . . . . . Propulsion Burnouts . | . . . . . Robots Hopped . | . . . . . Cave-ins Triggered . | . . . . . Exploration Rate (%) 27 | 5 47 11 62 11 Regions Visited 4 Branch Regions 1 Pre-discovered Areas 1 | . . . 1 . Known Exits Taken . | . . . . . Unknown Exits Taken 4 | 1 1 1 1 . Scrap Searched . | . . . . . Spaces Dug 6 | . . . 5 1 Terrain Destroyed 77 | . . 17 59 1 Melee 1 | . . . . 1 Projectile . | . . . . . AOE 76 | . . 17 59 . Terrain Rammed . | . . . . . Walls Destroyed . | . . . . . Machines Disabled . | . . . . . Actions | -11 -10 -9 -9 -8 --------- Run | Yrd Mat Mat Sto Mat Total 1308 | 118 455 203 286 246 Wait 51 | . 35 . . 16 Move 1052 | 98 382 172 236 164 Hop . | . . . . . Pick Up 32 | 3 7 7 5 10 Fast Attach 6 | 5 . . 1 . Attach 41 | 2 3 9 13 14 Detach 12 | . 2 2 7 1 Swap 6 | 1 . 1 4 . Drop 9 | . 5 4 . . Fire 76 | 9 21 8 20 18 Melee 4 | . . . . 4 Ram 19 | . . . . 19 Kick . | . . . . . Crush . | . . . . . Escape Stasis . | . . . . . Rewire . | . . . . . Trap . | . . . . . Miscellaneous . | . . . . . Route ------- -11/Scrapyard -10/Materials (discovered 2 exits: *Mat / [Min]) -9/Materials (discovered 2 exits: *Sto x2) -9/Storage (discovered 2 exits: *Mat / Gar) -8/Materials History --------- Turn | Location | Event 23 | -11/Scrapyard | Discovered new exit (range 15) 184 | -11/Scrapyard | Entered Materials 301 | -10/Materials | Build established: Mutant 471 | -10/Materials | Discovered new exit (range 14) 471 | -10/Materials | Discovered new exit (range 20) 851 | -10/Materials | Entered another Materials area 851 | -9/Materials | Evolved 2 slots: Propulsion x1, Utility x1 854 | -9/Materials | Discovered new exit (range 16) 1053 | -9/Materials | Discovered new exit (range 16) 1057 | -9/Materials | Entered Storage 1084 | -9/Storage | Learned location of Armory (-4) 1128 | -9/Storage | Lost 3 parts (1p2n) 1186 | -9/Storage | Identified exit to Garrison 1219 | -9/Storage | Lost 3 parts (2n1w) 1299 | -9/Storage | Core integrity fell below 50% 1310 | -9/Storage | Lost 5 parts (1p2n1u1w) 1315 | -9/Storage | Discovered new exit (range 15) 1329 | -9/Storage | Entered Materials 1329 | -8/Materials | Evolved 2 slots: Propulsion x1, Utility x1 1357 | -8/Materials | Lost 3 parts (3n) 1467 | -8/Materials | Core integrity fell below 50% 1472 | -8/Materials | Lost 3 parts (1p1n1w) 1477 | -8/Materials | Core integrity fell below 20% 1564 | -8/Materials | Garrison activated, responded to threat 1582 | -8/Materials | Destroyed by G-47 Trooper with Particle Gun Last Messages --------------- Penetrated by Slug. Destroyed Lgt. Nuclear Core. Penetrated by Slug. H-55 Commando suffers critical hit (Burn). Assault Rifle melted. Targeting Computer melted. H-55 Commando destroyed. Acquired 42 matter. Acquired Carbon-fiber Leg. Acquired 58 matter. U-05 Engineer builds a Wall. Structural Scanner destroyed. R-06 Scavenger calls for garrison support. ALERT: Activating Garrison Access M001. R-06 Scavenger sends out distress signal. G-47 Trooper destroyed. Acquired 50 matter. R-06 Scavenger collects Imp. Heat Sink. Acquired Aluminum Leg. K-01 Serf collects debris. Map ----- +----------------------------------------------------+ | ?????????????????????????####### + #????? | | ??????????????????? # #????? | | ???????????????????????######### # = #????? | | ??????????????????????????????## ########????? | | ??????????????????????????????# #??????????? | | ??????????????????????????????# #??????????? | | ??????????????????????????????# #??????????? | | ??????????????????????????????# #??????????? | | ??????????????????????????????# #??????????? | | ??????????????????????????????## ##?#######??? | | ???????????????????????????????# #? = #??? | | ??????????????????????? ######?# #? """#??? | | ???????????????????????######### # """#??? | | ???????????????????????## # """#??? | | ???????????????????????## + #??? | | ???????????????????????## # """#??? | | ???????????????????????## ##### ## """#??? | | ??????????????????????? # ##?## ##? ! """#??? | | ??????????????????????? # ##?## ##? #??? | | ??????????????????????? # r##?## ##??#######??? | | ??????????????????????? # ##### ###??????????? | | ??????????????????????? # ##### ###??????????? | | ??????????????????????? # # ##??????????? | | ??????????????????????? # #! !##??????????? | | ??????????????????????? # ##!!!!###??????????? | | ??????????????????????? #@ #########??????????? | | ???????????????????????##gg ########???????????? | | ??????????????????? k g ##?????????????????? | | ???????????????+ ?????????????????? | | ???????????????### ###????????????????? | | ?????????????????# #####+###?????????????????? | | ?????????????????# # ?????????????????? | | ?????????????????# ????????????????????????????? | | ???????????????? ?????????????????????????????? | | ??????????????? ??????????????????????????????? | | ??????????????? ???????????????????????????????? | | ???????????????????????????????????????????????? | | ???????????????????????????????????????????????? | | ???????????????????????????????????????????????? | | ???????????????????????????????????????????????? | | ???????????????????????????????????????????????? | | ???????????????????????????????????????????????? | | ???????????????????????????????????????????????? | | ???????????????????????????????????????????????? | | ???????????????????????????????????????????????? | | ???????????????????????????????????????????????? | | ???????????????????????????????????????????????? | | ???????????????????????????????????????????????? | | ???????????????????????????????????????????????? | | ???????????????????????????????????????????????? | +----------------------------------------------------+ Best States ------------- Heat Dissipation 31 Energy Generation 12 Energy Capacity 265 Matter Stores 300 Matter Capacity 300 Sight Range 16 Robot Scan Range 14 Terrain Scan Range 16 Terrain Scan Density 10 Core Shielding 20 Evasion (%) 63 Targeting Accuracy 6 Melee Accuracy 5 Recoil Reduction 3 Item Schematics ----------------- Flight Unit | -9/Materials | Scanalyzed Grenade Launcher | -9/Materials | Scanalyzed Lgt. Assault Rifle | -8/Materials | Scanalyzed Robot Schematics ------------------ None Fabricated ------------ Nothing Alien Tech Used ----------------- None Achievements -------------- Everything Is Under Control Oops Challenges ------------ None Game ------ Seed SmallChromaticLauncher Manual? 0 Play Time 00:35:18 Cumulative 2.3 hours Start 2024.04.05 @ 11:32:23 End 2024.04.07 @ 20:43:01 Sessions 5 Manual Loads 0 Difficulty Rogue Special Mode None Game No. 5 Rogue 5 Adventurer 0 Explorer 0 Win Type - Total 0 Types 0/0/0/0/0/0/0/0/0 Lore% 2 Gallery% 4 Achievement% 6 Wizard Run 0 Options --------- Layout 1 ASCII 0 Keyboard 0 Movement Mouse Keybinds 0 Fullscreen 1 Font 24/Smallcaps Map View 50x35 Zoom Use 0% Tactical HUD 0 Map Filters NONE Filters NONE Steam 1 RUN: 8431740f-7586-4ccd-9c5d-cb17825945ee